fUST/lending_fUST_20240521
["ID","MTS","AMOUNT","RATE_DAILY","PERIOD"]
[327627326,1716256294302,-500.0,0.00047945,55]
[327627327,1716256294312,-4569.8,0.00047945,55]
[327627328,1716256294325,-558.71,0.00047945,55]
[327627329,1716256294336,-655.44,0.00047945,55]
[327627330,1716256294345,-979.85,0.00047945,55]
[327627331,1716256294354,-616.35,0.00047945,55]
[327627332,1716256294364,-500.0,0.00047945,55]
[327627333,1716256294373,-211.77265046,0.00047945,55]
[327627334,1716256294383,-860.47,0.00047945,55]
[327627335,1716256294392,-701.3,0.00047945,55]
[327627336,1716256294401,-500.0,0.00047945,55]
[327627337,1716256294411,-621.4,0.00047945,55]
[327627338,1716256294421,-5043.45,0.00047945,55]
[327627339,1716256294430,-500.0,0.00047945,55]
[327627340,1716256294440,-500.0,0.00047945,55]
[327627341,1716256294450,-680.66,0.00047945,55]
[327627342,1716256294463,-905.75,0.00047945,55]
[327627343,1716256294472,-668.38,0.00047945,55]
[327627344,1716256294481,-500.0,0.00047945,55]
[327627345,1716256294491,-4536.56,0.00047945,55]
[327627346,1716256294501,-960.25,0.00047945,55]
[327627347,1716256294510,-634.52,0.00047945,55]
[327627348,1716256294522,-500.0,0.00047945,55]
[327627349,1716256294531,-530.04,0.00047945,55]
[327627350,1716256294543,-500.0,0.00047945,55]
[327627351,1716256294552,-1213.79,0.00047945,55]
[327627352,1716256294562,-697.34,0.00047945,55]
[327627353,1716256294572,-815.37,0.00047945,55]
[327627354,1716256294583,-500.0,0.00047945,55]
[327627355,1716256294592,-500.0,0.00047945,20]
[327627356,1716256294602,-543.69,0.00047945,55]
[327627357,1716256294612,-704.21,0.00047945,55]
[327627358,1716256294622,-1357.0,0.00047945,55]
[327627359,1716256294631,-590.21,0.00047945,55]
[327627360,1716256294640,-4443.84,0.00047945,21]
[327627361,1716256294649,-568.3,0.00047945,55]
[327627362,1716256294659,-854.22,0.00047945,55]
[327627363,1716256294668,-603.81,0.00047945,55]
[327627364,1716256294678,-1298.13,0.00047945,55]
[327627365,1716256294687,-686.9,0.00047945,55]
[327627366,1716256294696,-1283.07,0.00047945,55]
[327627367,1716256294705,-1928.09,0.00047945,55]
[327627368,1716256294714,-1521.93,0.00047945,55]
[327627369,1716256294724,-500.0,0.00047945,55]
[327627370,1716256294733,-500.0,0.00047945,55]
[327627371,1716256294742,-3265.34,0.00047945,55]
[327627372,1716256294752,-962.63,0.00047945,55]
[327627373,1716256294762,-500.0,0.00047945,55]
[327627374,1716256294771,-19738.08,0.00047945,55]
[327627375,1716256294780,-711.64,0.00047945,55]
[327627376,1716256294789,-2017.3,0.00047945,55]
[327627377,1716256294798,-1090.23,0.00047945,55]
[327627378,1716256294808,-500.0,0.00047945,55]
[327627379,1716256294818,-774.07,0.00047945,55]
[327627380,1716256294827,-1090.8,0.00047945,55]
[327627381,1716256294836,-500.0,0.00047945,55]
[327627382,1716256294845,-2075.97,0.00047945,55]
[327627383,1716256294855,-695.68,0.00047945,55]
[327627384,1716256294865,-500.0,0.00047945,55]
[327627385,1716256294875,-846.21,0.00047945,55]
[327627386,1716256294884,-500.0,0.00047945,55]
[327627387,1716256294894,-10000.0,0.00048,30]
[327627388,1716256294903,-1000.0,0.00048,120]
[327627389,1716256294912,-317.157529,0.00048089,2]
[327627390,1716256294921,-500.0,0.00048219,56]
[327627391,1716256294931,-767.25,0.00048219,56]
[327627392,1716256294940,-500.0,0.00048219,56]
[327627393,1716256294950,-837.43,0.00048219,56]
[327627394,1716256294959,-650.81,0.00048219,56]
[327627395,1716256294968,-230.11293141,0.00048219,56]
[327627396,1716256294977,-597.94,0.00048219,56]
[327627397,1716256294987,-500.0,0.00048219,56]
[327627398,1716256294996,-433.27812435,0.00048219,56]
[327627399,1716256295006,-500.0,0.00048219,56]
[327627400,1716256295018,-559.54,0.00048219,56]
[327627401,1716256295027,-622.99,0.00048219,56]
[327627402,1716256295036,-500.0,0.00048219,56]
[327627403,1716256295045,-789.44,0.00048219,56]
[327627404,1716256295055,-540.7,0.00048219,56]
[327627405,1716256295064,-596.6,0.00048219,56]
[327627406,1716256295074,-500.0,0.00048219,56]
[327627407,1716256295083,-702.31,0.00048219,56]
[327627408,1716256295092,-1198.71,0.00048219,56]
[327627409,1716256295102,-889.02,0.00048219,56]
[327627410,1716256295111,-698.24,0.00048219,56]
[327627411,1716256295120,-676.37,0.00048219,56]
[327627412,1716256295129,-500.0,0.00048219,56]
[327627413,1716256295139,-724.9,0.00048219,56]
[327627414,1716256295148,-803.48,0.00048219,56]
[327627415,1716256295157,-500.0,0.00048219,56]
[327627416,1716256295167,-820.9,0.00048219,56]
[327627417,1716256295176,-655.92,0.00048219,56]
[327627418,1716256295186,-273.40551648,0.00048219,56]
[327627419,1716256295195,-500.0,0.00048219,56]
[327627420,1716256295205,-500.0,0.00048219,56]
[327627421,1716256295214,-671.89,0.00048219,56]
[327627422,1716256295224,-520.46,0.00048219,56]
[327627423,1716256295233,-723.43,0.00048219,56]
[327627424,1716256295243,-949.87,0.00048219,56]
[327627425,1716256295252,-500.0,0.00048219,56]
[327627426,1716256295261,-684.86,0.00048219,56]
[327627427,1716256295342,-797.35,0.00048219,56]
[327627428,1716256295352,-723.49,0.00048219,56]
[327627429,1716256295362,-778.84,0.00048219,56]
[327627430,1716256295371,-861.17,0.00048219,56]
[327627431,1716256295381,-994.81,0.00048219,56]
[327627432,1716256295391,-736.19,0.00048219,56]
[327627433,1716256295400,-585.89,0.00048219,56]
[327627434,1716256295410,-798.18,0.00048219,56]
[327627435,1716256295419,-706.53,0.00048219,56]
[327627436,1716256295429,-500.0,0.00048219,56]
[327627437,1716256295438,-526.95,0.00048219,56]
[327627438,1716256295448,-761.38,0.00048219,56]
[327627439,1716256295457,-699.03,0.00048219,56]
[327627440,1716256295468,-500.0,0.00048219,56]
[327627441,1716256295477,-668.01,0.00048219,56]
[327627442,1716256295487,-983.04,0.00048219,56]
[327627443,1716256295496,-500.0,0.00048219,56]
[327627444,1716256295506,-640.06,0.00048219,56]
[327627445,1716256295515,-557.05,0.00048219,56]
[327627446,1716256295530,-1324.9,0.00048219,56]
[327627447,1716256295540,-634.01,0.00048219,56]
[327627448,1716256295549,-512.82,0.00048219,56]
[327627449,1716256295559,-655.25,0.00048219,56]
[327627450,1716256295571,-500.0,0.00048219,56]
[327627451,1716256295580,-820.76,0.00048219,56]
[327627452,1716256295590,-569.40167716,0.00048219,56]
[327627453,1716256295599,-500.0,0.00048219,56]
[327627454,1716256295609,-1050.19,0.00048219,56]
[327627455,1716256295619,-500.0,0.00048219,56]
[327627456,1716256295628,-578.19,0.00048219,56]
[327627457,1716256295637,-500.0,0.00048219,56]
[327627458,1716256295646,-500.0,0.00048219,2]
[327627459,1716256295655,-868.84,0.00048219,56]
[327627460,1716256295664,-560.94,0.00048219,56]
[327627461,1716256295673,-500.0,0.00048219,56]
[327627462,1716256295683,-635.63147441,0.00048219,56]
[327627463,1716256295693,-3015.8,0.00048219,56]
[327627464,1716256295702,-500.0,0.00048219,120]
[327627465,1716256295711,-742.5,0.00048219,56]
[327627466,1716256295720,-1312.06,0.00048219,56]
[327627467,1716256295730,-672.9,0.00048219,56]
[327627468,1716256295740,-500.0,0.00048219,56]
[327627469,1716256295749,-1721.54,0.00048219,56]
[327627470,1716256295758,-537.17,0.00048219,56]
[327627471,1716256295768,-1288.56,0.00048219,56]
[327627472,1716256295778,-2966.04,0.00048219,56]
[327627473,1716256295787,-800.58,0.00048219,56]
[327627474,1716256295796,-519.32,0.00048219,56]
[327627475,1716256295806,-1101.76,0.00048219,56]
[327627476,1716256295815,-571.16,0.00048219,56]
[327627477,1716256295824,-3000.0,0.00048219,30]
[327627478,1716256295833,-430.62540258,0.00048219,56]
[327627479,1716256295843,-679.77,0.00048219,56]
[327627480,1716256295853,-3098.74,0.00048219,56]
[327627481,1716256295862,-573.79,0.00048219,56]
[327627482,1716256295872,-740.22,0.00048219,56]
[327627483,1716256295881,-946.03,0.00048219,56]
[327627484,1716256295892,-520.3,0.00048219,56]
[327627485,1716256295902,-683.12,0.00048219,56]
[327627486,1716256295912,-1857.09,0.00048219,56]
[327627487,1716256295925,-815.0,0.00048219,56]
[327627488,1716256295945,-504.58,0.00048219,56]
[327627489,1716256295961,-725.35,0.00048219,56]
[327627490,1716256295981,-1095.12,0.00048219,56]
[327627491,1716256296001,-758.0,0.00048219,56]
[327627492,1716256296017,-10687.91,0.00048219,56]
[327627493,1716256296035,-3071.22,0.00048219,7]
[327627494,1716256296049,-1953.62,0.00048219,56]
[327627495,1716256296064,-621.32,0.00048219,56]
[327627496,1716256296081,-871.95,0.00048219,7]
[327627497,1716256296100,-359.00822886,0.00048219,56]
[327627498,1716256296115,-500.0,0.00048219,56]
[327627499,1716256296129,-779.29,0.00048219,56]
[327627500,1716256296145,-711.26,0.00048219,56]
[327627501,1716256296160,-500.0,0.00048219,56]
[327627502,1716256296175,-702.98,0.00048219,56]
[327627503,1716256296190,-746.5,0.00048219,56]
[327627504,1716256296205,-500.0,0.00048219,56]
[327627505,1716256296219,-4569.8,0.00048219,56]
[327627506,1716256296233,-558.71,0.00048219,56]
[327627507,1716256296248,-655.44,0.00048219,56]
[327627508,1716256296262,-979.85,0.00048219,56]
[327627509,1716256296277,-616.35,0.00048219,56]
[327627510,1716256296292,-500.0,0.00048219,56]
[327627511,1716256296306,-860.47,0.00048219,56]
[327627512,1716256296321,-701.3,0.00048219,56]
[327627513,1716256296335,-500.0,0.00048219,56]
[327627514,1716256296349,-621.4,0.00048219,56]
[327627515,1716256296364,-5043.45,0.00048219,56]
[327627516,1716256296378,-500.0,0.00048219,56]
[327627517,1716256296392,-500.0,0.00048219,56]
[327627518,1716256296406,-680.66,0.00048219,56]
[327627519,1716256296421,-905.75,0.00048219,56]
[327627520,1716256296435,-668.38,0.00048219,56]
[327627521,1716256296449,-500.0,0.00048219,56]
[327627522,1716256296465,-4536.56,0.00048219,56]
[327627523,1716256296479,-960.25,0.00048219,56]
[327627524,1716256296493,-634.52,0.00048219,56]
[327627525,1716256296508,-500.0,0.00048219,56]
[327627526,1716256296523,-530.04,0.00048219,56]
[327627527,1716256296541,-500.0,0.00048219,56]
[327627528,1716256296556,-1213.79,0.00048219,56]
[327627529,1716256296572,-697.34,0.00048219,56]
[327627530,1716256296586,-815.37,0.00048219,56]
[327627531,1716256296601,-500.0,0.00048219,56]
[327627532,1716256296618,-500.0,0.00048219,20]
[327627533,1716256296633,-543.69,0.00048219,56]
[327627534,1716256296648,-704.21,0.00048219,56]
[327627535,1716256296663,-1357.0,0.00048219,56]
[327627536,1716256296677,-590.21,0.00048219,56]
[327627537,1716256296690,-4443.84,0.00048219,21]
[327627538,1716256296706,-568.3,0.00048219,56]
[327627539,1716256296721,-854.22,0.00048219,56]
[327627540,1716256296736,-603.81,0.00048219,56]
[327627541,1716256296750,-1298.13,0.00048219,56]
[327627542,1716256296766,-686.9,0.00048219,56]
[327627543,1716256296780,-1283.07,0.00048219,56]
[327627544,1716256296794,-1928.09,0.00048219,56]
[327627545,1716256296808,-1521.93,0.00048219,56]
[327627546,1716256296909,-500.0,0.00048219,56]
[327627547,1716256296944,-500.0,0.00048219,56]
[327627548,1716256296953,-3265.34,0.00048219,56]
[327627549,1716256296964,-962.63,0.00048219,56]
[327627550,1716256296972,-500.0,0.00048219,56]
[327627551,1716256296982,-19738.08,0.00048219,56]
[327627552,1716256296991,-711.64,0.00048219,56]
[327627553,1716256296999,-2017.3,0.00048219,56]
[327627554,1716256297009,-1090.23,0.00048219,56]
[327627555,1716256297020,-774.07,0.00048219,56]
[327627556,1716256297029,-1090.8,0.00048219,56]
[327627557,1716256297038,-2075.97,0.00048219,56]
[327627558,1716256297047,-500.0,0.00048219,56]
[327627559,1716256297056,-695.68,0.00048219,56]
[327627560,1716256297065,-500.0,0.00048219,56]
[327627561,1716256297074,-846.21,0.00048219,56]
[327627562,1716256297084,-566.17395738,0.00048348,2]
[327627563,1716256297093,-347192.61479379,0.00048398,8]
[327627564,1716256297102,-160.0,0.00048411,8]
[327627565,1716256297111,-500.0,0.00048493,57]
[327627566,1716256297120,-767.25,0.00048493,57]
[327627567,1716256297130,-449.41211568,0.00048493,57]
[327627568,1716256297139,-837.43,0.00048493,57]
[327627569,1716256297148,-650.81,0.00048493,57]
[327627570,1716256297157,-597.94,0.00048493,57]
[327627571,1716256297166,-500.0,0.00048493,57]
[327627572,1716256297175,-500.0,0.00048493,57]
[327627573,1716256297184,-559.54,0.00048493,57]
[327627574,1716256297193,-622.99,0.00048493,57]
[327627575,1716256297203,-500.0,0.00048493,57]
[327627576,1716256297212,-789.44,0.00048493,57]
[327627577,1716256297221,-540.7,0.00048493,57]
[327627578,1716256297231,-596.6,0.00048493,57]
[327627579,1716256297240,-500.0,0.00048493,57]
[327627580,1716256297249,-702.31,0.00048493,57]
[327627581,1716256297258,-1198.71,0.00048493,57]
[327627582,1716256297269,-889.02,0.00048493,57]
[327627583,1716256297279,-698.24,0.00048493,57]
[327627584,1716256297289,-676.37,0.00048493,57]
[327627585,1716256297298,-260.54070859,0.00048493,57]
[327627586,1716256297307,-724.9,0.00048493,57]
[327627587,1716256297317,-803.48,0.00048493,57]
[327627588,1716256297326,-500.0,0.00048493,57]
[327627589,1716256297336,-820.9,0.00048493,57]
[327627590,1716256297346,-655.92,0.00048493,57]
[327627591,1716256297355,-500.0,0.00048493,57]
[327627592,1716256297365,-500.0,0.00048493,57]
[327627593,1716256297375,-671.89,0.00048493,57]
[327627594,1716256297385,-520.46,0.00048493,57]
[327627595,1716256297395,-723.43,0.00048493,57]
[327627596,1716256297405,-949.87,0.00048493,57]
[327627597,1716256297415,-500.0,0.00048493,57]
[327627598,1716256297425,-684.86,0.00048493,57]
[327627599,1716256297434,-723.49,0.00048493,57]
[327627600,1716256297444,-797.35,0.00048493,57]
[327627601,1716256297454,-778.84,0.00048493,57]
[327627602,1716256297463,-861.17,0.00048493,57]
[327627603,1716256297473,-994.81,0.00048493,57]
[327627604,1716256297483,-736.19,0.00048493,57]
[327627605,1716256297493,-585.89,0.00048493,57]
[327627606,1716256297503,-798.18,0.00048493,57]
[327627607,1716256297512,-706.53,0.00048493,57]
[327627608,1716256297528,-500.0,0.00048493,57]
[327627609,1716256297537,-526.95,0.00048493,57]
[327627610,1716256297547,-761.38,0.00048493,57]
[327627611,1716256297556,-699.03,0.00048493,57]
[327627612,1716256297567,-500.0,0.00048493,57]
[327627613,1716256297576,-983.04,0.00048493,57]
[327627614,1716256297586,-668.01,0.00048493,57]
[327627615,1716256297595,-500.0,0.00048493,57]
[327627616,1716256297604,-640.06,0.00048493,57]
[327627617,1716256297616,-557.05,0.00048493,57]
[327627618,1716256297625,-1324.9,0.00048493,57]
[327627619,1716256297634,-634.01,0.00048493,57]
[327627620,1716256297644,-512.82,0.00048493,57]
[327627621,1716256297653,-655.25,0.00048493,57]
[327627622,1716256297663,-500.0,0.00048493,57]
[327627623,1716256297673,-820.76,0.00048493,57]
[327627624,1716256297682,-500.0,0.00048493,57]
[327627625,1716256297691,-1050.19,0.00048493,57]
[327627626,1716256297701,-500.0,0.00048493,57]
[327627627,1716256297710,-578.19,0.00048493,57]
[327627628,1716256297719,-500.0,0.00048493,57]
[327627629,1716256297728,-500.0,0.00048493,2]
[327627630,1716256297738,-868.84,0.00048493,57]
[327627631,1716256297747,-560.94,0.00048493,57]
[327627632,1716256297757,-500.0,0.00048493,57]
[327627633,1716256297766,-3015.8,0.00048493,57]
[327627634,1716256297777,-500.0,0.00048493,120]
[327627635,1716256297786,-742.5,0.00048493,57]
[327627636,1716256297795,-1312.06,0.00048493,57]
[327627637,1716256297805,-672.9,0.00048493,57]
[327627638,1716256297815,-500.0,0.00048493,57]
[327627639,1716256297824,-537.17,0.00048493,57]
[327627640,1716256297833,-1721.54,0.00048493,57]
[327627641,1716256297842,-1288.56,0.00048493,57]
[327627642,1716256297852,-2966.04,0.00048493,57]
[327627643,1716256297861,-800.58,0.00048493,57]
[327627644,1716256297871,-519.32,0.00048493,57]
[327627645,1716256297880,-1101.76,0.00048493,57]
[327627646,1716256297889,-571.16,0.00048493,57]
[327627647,1716256297899,-3000.0,0.00048493,30]
[327627648,1716256297908,-679.77,0.00048493,57]
[327627649,1716256297917,-3098.74,0.00048493,57]
[327627650,1716256297927,-573.79,0.00048493,57]
[327627651,1716256297936,-740.22,0.00048493,57]
[327627652,1716256297945,-946.03,0.00048493,57]
[327627653,1716256297954,-520.3,0.00048493,57]
[327627654,1716256297964,-683.12,0.00048493,57]
[327627655,1716256297973,-1857.09,0.00048493,57]
[327627656,1716256297982,-815.0,0.00048493,57]
[327627657,1716256297992,-504.58,0.00048493,57]
[327627658,1716256298002,-725.35,0.00048493,57]
[327627659,1716256298011,-1095.12,0.00048493,57]
[327627660,1716256298022,-758.0,0.00048493,57]
[327627661,1716256298031,-10687.91,0.00048493,57]
[327627662,1716256298040,-3071.22,0.00048493,7]
[327627663,1716256298048,-1953.62,0.00048493,57]
[327627664,1716256298057,-621.32,0.00048493,57]
[327627665,1716256298067,-871.95,0.00048493,7]
[327627666,1716256298077,-500.0,0.00048493,57]
[327627667,1716256298086,-779.29,0.00048493,57]
[327627668,1716256298096,-711.26,0.00048493,57]
[327627669,1716256298105,-500.0,0.00048493,57]
[327627670,1716256298114,-702.98,0.00048493,57]
[327627671,1716256298124,-746.5,0.00048493,57]
[327627672,1716256298132,-500.0,0.00048493,57]
[327627673,1716256298142,-4569.8,0.00048493,57]
[327627674,1716256298151,-558.71,0.00048493,57]
[327627675,1716256298161,-655.44,0.00048493,57]
[327627676,1716256298171,-979.85,0.00048493,57]
[327627677,1716256298181,-616.35,0.00048493,57]
[327627678,1716256298190,-500.0,0.00048493,57]
[327627679,1716256298200,-860.47,0.00048493,57]
[327627680,1716256298210,-701.3,0.00048493,57]
[327627681,1716256298219,-500.0,0.00048493,57]
[327627682,1716256298228,-621.4,0.00048493,57]
[327627683,1716256298238,-5043.45,0.00048493,57]
[327627684,1716256298247,-500.0,0.00048493,57]
[327627685,1716256298257,-500.0,0.00048493,57]
[327627686,1716256298267,-680.66,0.00048493,57]
[327627687,1716256298277,-905.75,0.00048493,57]
[327627688,1716256298287,-668.38,0.00048493,57]
[327627689,1716256298296,-500.0,0.00048493,57]
[327627690,1716256298306,-4536.56,0.00048493,57]
[327627691,1716256298316,-960.25,0.00048493,57]
[327627692,1716256298325,-634.52,0.00048493,57]
[327627693,1716256298334,-500.0,0.00048493,57]
[327627694,1716256298344,-530.04,0.00048493,57]
[327627695,1716256298353,-500.0,0.00048493,57]
[327627696,1716256298363,-1213.79,0.00048493,57]
[327627697,1716256298373,-815.37,0.00048493,57]
[327627698,1716256298383,-697.34,0.00048493,57]
[327627699,1716256298392,-500.0,0.00048493,57]
[327627700,1716256298402,-500.0,0.00048493,20]
[327627701,1716256298411,-543.69,0.00048493,57]
[327627702,1716256298420,-704.21,0.00048493,57]
[327627703,1716256298429,-1357.0,0.00048493,57]
[327627704,1716256298439,-590.21,0.00048493,57]
[327627705,1716256298448,-4443.84,0.00048493,21]
[327627706,1716256298458,-568.3,0.00048493,57]
[327627707,1716256298468,-854.22,0.00048493,57]
[327627708,1716256298477,-603.81,0.00048493,57]
[327627709,1716256298487,-1298.13,0.00048493,57]
[327627710,1716256298498,-686.9,0.00048493,57]
[327627711,1716256298508,-1283.07,0.00048493,57]
[327627712,1716256298518,-1928.09,0.00048493,57]
[327627713,1716256298528,-1521.93,0.00048493,57]
[327627714,1716256298629,-500.0,0.00048493,57]
[327627715,1716256298639,-500.0,0.00048493,57]
[327627716,1716256298648,-3265.34,0.00048493,57]
[327627717,1716256298657,-962.63,0.00048493,57]
[327627718,1716256298667,-500.0,0.00048493,57]
[327627719,1716256298676,-19738.08,0.00048493,57]
[327627720,1716256298685,-711.64,0.00048493,57]
[327627721,1716256298694,-2017.3,0.00048493,57]
[327627722,1716256298704,-1090.23,0.00048493,57]
[327627723,1716256298714,-774.07,0.00048493,57]
[327627724,1716256298723,-1090.8,0.00048493,57]
[327627725,1716256298732,-2075.97,0.00048493,57]
[327627726,1716256298742,-500.0,0.00048493,57]
[327627727,1716256298751,-695.68,0.00048493,57]
[327627728,1716256298761,-500.0,0.00048493,57]
[327627729,1716256298772,-846.21,0.00048493,57]
[327627730,1716256298781,-2484.0,0.000485,60]
[327627731,1716256298790,-500.0,0.00048767,58]
[327627732,1716256298799,-767.25,0.00048767,58]
[327627733,1716256298808,-837.43,0.00048767,58]
[327627734,1716256298817,-650.81,0.00048767,58]
[327627735,1716256298827,-597.94,0.00048767,58]
[327627736,1716256298837,-500.0,0.00048767,58]
[327627737,1716256298846,-500.0,0.00048767,58]
[327627738,1716256298856,-559.54,0.00048767,58]
[327627739,1716256298866,-622.99,0.00048767,58]
[327627740,1716256298876,-500.0,0.00048767,58]
[327627741,1716256298885,-789.44,0.00048767,58]
[327627742,1716256298895,-540.7,0.00048767,58]
[327627743,1716256298905,-596.6,0.00048767,58]
[327627744,1716256298915,-500.0,0.00048767,58]
[327627745,1716256298924,-702.31,0.00048767,58]
[327627746,1716256298933,-1198.71,0.00048767,58]
[327627747,1716256298942,-889.02,0.00048767,58]
[327627748,1716256298952,-698.24,0.00048767,58]
[327627749,1716256298962,-676.37,0.00048767,58]
[327627750,1716256298971,-724.9,0.00048767,58]
[327627751,1716256298979,-803.48,0.00048767,58]
[327627752,1716256298989,-500.0,0.00048767,58]
[327627753,1716256298998,-820.9,0.00048767,58]
[327627754,1716256299007,-655.92,0.00048767,58]
[327627755,1716256299018,-500.0,0.00048767,58]
[327627756,1716256299028,-484.37393041,0.00048767,58]
[327627757,1716256299038,-671.89,0.00048767,58]
[327627758,1716256299048,-520.46,0.00048767,58]
[327627759,1716256299057,-723.43,0.00048767,58]
[327627760,1716256299067,-949.87,0.00048767,58]
[327627761,1716256299078,-500.0,0.00048767,58]
[327627762,1716256299088,-684.86,0.00048767,58]
[327627763,1716256299098,-723.49,0.00048767,58]
[327627764,1716256299109,-797.35,0.00048767,58]
[327627765,1716256299119,-778.84,0.00048767,58]
[327627766,1716256299129,-861.17,0.00048767,58]
[327627767,1716256299139,-994.81,0.00048767,58]
[327627768,1716256299150,-736.19,0.00048767,58]
[327627769,1716256299160,-585.89,0.00048767,58]
[327627770,1716256299171,-798.18,0.00048767,58]
[327627771,1716256299182,-706.53,0.00048767,58]
[327627772,1716256299191,-288.69430109,0.00048767,58]
[327627773,1716256299201,-526.95,0.00048767,58]
[327627774,1716256299211,-761.38,0.00048767,58]
[327627775,1716256299222,-699.03,0.00048767,58]
[327627776,1716256299231,-500.0,0.00048767,58]
[327627777,1716256299241,-983.04,0.00048767,58]
[327627778,1716256299251,-668.01,0.00048767,58]
[327627779,1716256299260,-500.0,0.00048767,58]
[327627780,1716256299273,-640.06,0.00048767,58]
[327627781,1716256299283,-557.05,0.00048767,58]
[327627782,1716256299293,-1324.9,0.00048767,58]
[327627783,1716256299303,-634.01,0.00048767,58]
[327627784,1716256299313,-512.82,0.00048767,58]
[327627785,1716256299323,-655.25,0.00048767,58]
[327627786,1716256299332,-213.74796829,0.00048767,58]
[327627787,1716256299341,-820.76,0.00048767,58]
[327627788,1716256299350,-500.0,0.00048767,58]
[327627789,1716256299359,-1050.19,0.00048767,58]
[327627790,1716256299369,-500.0,0.00048767,58]
[327627791,1716256299378,-500.0,0.00048767,58]
[327627792,1716256299387,-578.19,0.00048767,58]
[327627793,1716256299396,-500.0,0.00048767,2]
[327627794,1716256299406,-868.84,0.00048767,58]
[327627795,1716256299415,-560.94,0.00048767,58]
[327627796,1716256299424,-500.0,0.00048767,58]
[327627797,1716256299434,-3015.8,0.00048767,58]
[327627798,1716256299443,-500.0,0.00048767,120]
[327627799,1716256299453,-742.5,0.00048767,58]
[327627800,1716256299463,-1312.06,0.00048767,58]
[327627801,1716256299472,-672.9,0.00048767,58]
[327627802,1716256299483,-500.0,0.00048767,58]
[327627803,1716256299493,-537.17,0.00048767,58]
[327627804,1716256299503,-1721.54,0.00048767,58]
[327627805,1716256299513,-1288.56,0.00048767,58]
[327627806,1716256299529,-2966.04,0.00048767,58]
[327627807,1716256299538,-800.58,0.00048767,58]
[327627808,1716256299548,-519.32,0.00048767,58]
[327627809,1716256299557,-1101.76,0.00048767,58]
[327627810,1716256299568,-571.16,0.00048767,58]
[327627811,1716256299578,-3000.0,0.00048767,30]
[327627812,1716256299588,-679.77,0.00048767,58]
[327627813,1716256299597,-3098.74,0.00048767,58]
[327627814,1716256299608,-573.79,0.00048767,58]
[327627815,1716256299617,-740.22,0.00048767,58]
[327627816,1716256299626,-946.03,0.00048767,58]
[327627817,1716256299636,-520.3,0.00048767,58]
[327627818,1716256299646,-683.12,0.00048767,58]
[327627819,1716256299656,-815.0,0.00048767,58]
[327627820,1716256299666,-1857.09,0.00048767,58]
[327627821,1716256299676,-504.58,0.00048767,58]
[327627822,1716256299686,-725.35,0.00048767,58]
[327627823,1716256299696,-1095.12,0.00048767,58]
[327627824,1716256299706,-758.0,0.00048767,58]
[327627825,1716256299716,-10687.91,0.00048767,58]